bitfinex-derivatives/quotes_SOLF0:USTF0_20241021
["timestamp","ask_amount","ask_price","bid_price","bid_amount"]
[1729482648165,2.9561,169.18,169.17,0.1]
[1729482648364,5.04,169.21,169.16,0.1]
[1729482648365,2.4836,169.2,169.16,0.1]
[1729482648564,5.02,169.19,169.16,0.1]
[1729482648962,5.02,169.19,169.15,0.1]
[1729482649169,5.016,169.18,169.14,0.1]
[1729482649468,2.9566,169.15,169.14,0.1]
[1729482649772,7.9766,169.15,169.14,0.1]
[1729482652771,5.02,169.15,169.14,0.1]
[1729482653271,5.02,169.18,169.14,0.1]
[1729482653871,5.02,169.18,169.14,3.0568]
[1729482655363,5.02,169.18,169.14,2.9568]
[1729482656875,5.02,169.18,169.17,0.1]
[1729482658970,5.02,169.18,169.14,2.9568]
[1729482659471,2.956,169.19,169.16,2.9564]
[1729482659472,5.02,169.19,169.16,2.9564]
[1729482661172,2.9555,169.22,169.17,2.9562]
[1729482661371,5.02,169.21,169.17,2.9562]
[1729482661772,5.02,169.21,169.18,2.88475254]
[1729482663173,7.9756,169.21,169.18,2.88475254]
[1729482665175,5.02,169.21,169.18,2.88475254]
[1729482665379,5.02,169.21,169.19,2.9558]
[1729482665876,5.02,169.24,169.19,2.9558]
[1729482666669,5.02,169.24,169.2,3.01095097]
[1729482666874,2.9553,169.23,169.2,3.01095097]
[1729482670079,5.02,169.24,169.2,3.01095097]
[1729482670281,7.9751,169.24,169.19,2.9558]
[1729482670781,7.9751,169.24,169.19,5.90464417]
[1729482671182,2.9551,169.24,169.19,5.90464417]
[1729482671481,7.9751,169.24,169.19,5.90464417]
[1729482672985,2.9549,169.26,169.21,2.9555]
[1729482673178,2.9549,169.26,169.19,2.94884417]
[1729482673179,2.9549,169.26,169.13,5.02]
[1729482673479,7.9749,169.26,169.21,2.9555]
[1729482674283,5.02,169.28,169.24,2.9549]
[1729482674778,2.954,169.31,169.23,2.9552]
[1729482675081,5.02,169.3,169.23,2.90714036]
[1729482675275,5.02,169.3,169.26,2.9547]
[1729482675876,5.02,169.33,169.26,2.98203617]
[1729482676179,5.02,169.34,169.22,5.02]
[1729482676485,5.02,169.34,169.23,5.32210684]
[1729482676685,5.02,169.34,169.29,2.9541]
[1729482677580,5.1315,169.36,169.26,5.0]
[1729482677782,13.0845,169.36,169.31,2.9537]
[1729482678483,8.0845,169.36,169.31,5.90424272]
[1729482678689,5.0,169.35,169.31,5.90424272]
[1729482682883,5.0,169.35,169.31,2.95054272]
[1729482683090,5.0,169.35,169.28,2.9544]
[1729482683288,5.0,169.35,169.23,1.47803083]
[1729482683289,5.0,169.35,169.23,5.1143]
[1729482683587,5.0,169.35,169.23,13.13180345]
[1729482684990,2.9539,169.31,169.26,2.9547]
[1729482689300,5.0,169.31,169.25,2.9549]
[1729482690390,5.0,169.31,169.23,5.97260345]
[1729482690699,5.0,169.31,169.23,3.01750345]
[1729482690900,5.0,169.31,169.21,5.0]
[1729482691296,5.0,169.31,169.21,7.92717376]
[1729482691897,2.9544,169.28,169.24,2.9551]
[1729482692495,5.0,169.31,169.24,2.9551]
[1729482692800,2.9543,169.29,169.24,2.9551]
[1729482694409,5.0,169.31,169.21,7.92717376]
[1729482694600,2.9541,169.3,169.26,2.9547]
[1729482697507,2.9535,169.33,169.25,2.9548]
[1729482697702,5.1315,169.36,169.21,7.92717376]
[1729482697703,5.0,169.34,169.21,7.92717376]
[1729482697908,5.0,169.34,169.22,10.32096369]
[1729482698211,7.9534,169.34,169.29,2.9541]
[1729482698611,7.9534,169.34,169.26,5.0]
[1729482698812,7.9534,169.34,169.29,2.9541]
[1729482699613,13.0846,169.36,169.31,2.9538]
[1729482699813,13.0846,169.36,169.31,5.89316567]
[1729482703319,10.1315,169.36,169.31,2.93936567]
[1729482703523,5.0,169.36,169.26,10.2343]
[1729482703718,5.2981,169.43,169.26,10.2343]
[1729482703917,2.9523,169.41,169.31,2.9538]
[1729482704117,5.2981,169.43,169.32,5.0]
[1729482704914,2.9524,169.4,169.35,2.9531]
[1729482705121,5.2981,169.43,169.32,5.0]
[1729482705321,7.8884,169.43,169.32,5.0]
[1729482705623,2.9525,169.39,169.34,2.9532]
[1729482705817,2.9525,169.39,169.32,5.0]
[1729482706616,2.9518,169.43,169.38,2.9526]
[1729482707023,5.0,169.45,169.33,7.6834]
[1729482707221,5.0,169.45,169.39,2.9524]
[1729482707222,2.9516,169.44,169.39,2.9524]
[1729482709020,4.98,169.45,169.39,2.9524]
[1729482709223,4.98,169.45,169.38,2.9526]
[1729482710322,2.9519,169.43,169.38,2.9526]
[1729482710721,4.98,169.45,169.35,2.9531]
[1729482711023,2.5681,169.44,169.35,2.9531]
[1729482711426,5.315,169.43,169.35,2.9531]
[1729482711616,5.315,169.43,169.33,2.9535]
[1729482711819,5.315,169.43,169.31,146.53797314]
[1729482711820,5.315,169.43,169.31,151.51797314]
[1729482712221,2.9529,169.37,169.32,2.9536]
[1729482712421,2.9529,169.37,169.31,151.51797314]
[1729482712823,4.98,169.4,169.31,146.53797314]
[1729482713017,4.98,169.4,169.31,149.49177314]
[1729482713824,4.98,169.4,169.31,146.53797314]
[1729482714025,4.98,169.4,169.32,2.9537]
[1729482714915,2.9529,169.37,169.32,2.9537]
[1729482717933,4.98,169.4,169.32,2.9537]
[1729482719026,2.953,169.37,169.32,2.9537]
[1729482723927,4.98,169.4,169.31,5.87141555]
[1729482724127,4.98,169.4,169.31,2.9538]
[1729482724532,2.9531,169.36,169.31,2.9538]
[1729482724730,2.9531,169.36,169.31,5.9086005]
[1729482725035,2.9531,169.36,169.31,2.9538]
[1729482725234,2.9531,169.36,169.28,4.98]
[1729482725434,2.9531,169.36,169.32,2.9536]
[1729482731534,4.98,169.4,169.28,7.8949067]
[1729482732839,4.98,169.4,169.31,2.9538]
[1729482733838,2.9531,169.36,169.31,2.9538]
[1729482734450,2.9534,169.34,169.29,2.9541]
[1729482734748,4.98,169.4,169.28,7.8949067]
[1729482735144,2.9531,169.36,169.31,2.9538]
[1729482753063,4.98,169.4,169.31,2.9538]
[1729482753258,4.98,169.4,169.28,10.8491067]
[1729482753259,2.9529,169.37,169.28,10.8491067]
[1729482753464,4.98,169.36,169.29,1.47801135]
[1729482753665,4.98,169.36,169.28,7.8949067]
[1729482754159,2.9535,169.34,169.29,2.954]
[1729482755463,4.98,169.36,169.28,5.8692067]
[1729482755672,4.98,169.36,169.28,2.9149067]
[1729482755865,7.6853,169.35,169.21,2.36543157]
[1729482756161,7.6853,169.35,169.22,1.47844962]
[1729482756367,7.6853,169.35,169.2,10.0834]
[1729482756764,7.6853,169.35,169.21,3.84385523]
[1729482756969,2.9538,169.32,169.24,2.9549]
[1729482757164,7.6853,169.35,169.24,2.9549]
[1729482757165,4.98,169.31,169.24,5.87990416]
[1729482757565,4.98,169.31,169.24,2.92500416]
[1729482757768,4.98,169.31,169.2,10.0834]
[1729482757963,4.98,169.34,169.21,7.68692428]
[1729482758168,4.98,169.34,169.22,5.32175552]
[1729482758370,2.9537,169.32,169.27,2.9544]
[1729482758566,2.9537,169.32,169.27,5.90527675]
[1729482760372,2.9537,169.32,169.19,63.82]
[1729482760373,4.98,169.34,169.19,4.98]
[1729482760573,4.98,169.34,169.2,1.47848458]
[1729482760776,4.98,169.34,169.19,4.98]
[1729482760777,4.98,169.34,169.21,1.47848458]
[1729482760975,4.98,169.34,169.19,4.98]
[1729482761177,4.98,169.34,169.2,3.84410716]
[1729482761481,2.954,169.31,169.22,2.9554]
[1729482761663,4.98,169.3,169.22,2.9554]
[1729482761870,4.98,169.29,169.22,2.9554]
[1729482762073,4.98,169.29,169.23,1.47851482]
[1729482762268,4.98,169.29,169.23,2.98599379]
[1729482762473,4.98,169.29,169.22,2.9554]
[1729482762970,2.9546,169.27,169.23,1.4785132]
[1729482763175,2.9546,169.27,169.23,2.90793632]
[1729482763377,2.9546,169.27,169.22,2.9554]
[1729482765378,2.9546,169.27,169.23,2.9552]
[1729482765580,2.9546,169.27,169.23,5.83931203]
[1729482765781,4.98,169.29,169.23,5.83931203]
[1729482765782,2.9544,169.28,169.23,2.88411203]
[1729482765984,4.98,169.29,169.24,2.955]
[1729482766475,7.6853,169.35,169.23,2.92905155]
[1729482766681,4.98,169.34,169.24,1.47839189]
[1729482766878,4.98,169.34,169.23,7.9903566]
[1729482767182,2.9538,169.32,169.27,2.9544]
[1729482770485,4.98,169.34,169.23,7.9903566]
[1729482770676,4.98,169.34,169.24,1.47823306]
[1729482770881,4.98,169.34,169.25,1.47823306]
[1729482771081,4.98,169.34,169.23,7.9903566]
[1729482771484,4.98,169.34,169.24,1.47824155]
[1729482771686,4.98,169.34,169.25,1.47824155]
[1729482771986,2.9537,169.32,169.27,2.9544]
[1729482776490,4.98,169.34,169.23,7.9903566]
[1729482776687,4.98,169.34,169.24,8.96882218]
[1729482776992,4.98,169.34,169.25,1.4782393]
[1729482777193,4.98,169.34,169.26,1.4782393]
[1729482777491,2.9537,169.32,169.27,2.9546]
[1729482777894,2.9537,169.32,169.28,2.9543]
[1729482778092,2.9536,169.33,169.24,5.1254]
[1729482778294,4.98,169.34,169.25,5.32154166]
[1729482778494,4.98,169.34,169.26,1.47821173]
[1729482778793,2.9537,169.32,169.27,2.9546]
[1729482779591,2.9537,169.32,169.24,5.1254]
[1729482779791,2.9537,169.32,169.28,2.9544]
[1729482780194,2.9535,169.33,169.28,2.9544]
[1729482780588,4.98,169.34,169.24,5.1254]
[1729482780795,4.98,169.34,169.25,1.47828859]
[1729482780995,4.98,169.34,169.23,7.9903566]
[1729482781293,2.9544,169.29,169.24,4.43327396]
[1729482781493,2.9544,169.29,169.25,1.47837396]
[1729482781694,2.9544,169.29,169.25,2.97577234]
[1729482781999,2.9544,169.29,169.24,2.9549]
[1729482782404,2.9544,169.29,169.24,5.85412039]
[1729482782595,2.9545,169.28,169.24,5.85412039]
[1729482784196,2.9545,169.28,169.24,2.89922039]
[1729482784392,2.9548,169.26,169.19,4.96]
[1729482784600,2.9548,169.26,169.2,7.68796934]
[1729482784798,2.9548,169.26,169.19,4.96]
[1729482785002,2.9548,169.26,169.21,2.9556]
[1729482785202,4.96,169.3,169.22,5.32244035]
[1729482785403,4.96,169.3,169.21,2.9556]
[1729482785703,4.96,169.3,169.22,1.47852657]
[1729482785898,4.96,169.3,169.23,2.9551]
[1729482786098,4.96,169.3,169.23,5.87192726]
[1729482786296,4.96,169.3,169.24,1.47845022]
[1729482786612,2.9545,169.28,169.23,5.87192726]
[1729482786898,2.9545,169.28,169.24,1.47845003]
[1729482787104,2.9545,169.28,169.23,5.87192726]
[1729482787295,2.9545,169.28,169.24,1.47844258]
[1729482787501,2.9545,169.28,169.23,5.87192726]
[1729482787699,2.9545,169.28,169.24,1.47844253]
[1729482787899,2.9545,169.28,169.23,5.87192726]
[1729482788100,4.96,169.3,169.24,1.47839768]
[1729482788301,4.96,169.3,169.25,1.47833581]
[1729482788507,4.96,169.3,169.23,2.91682726]
[1729482788805,4.96,169.3,169.24,1.47833556]
[1729482789107,7.9142,169.3,169.25,4.43313556]
[1729482789304,7.9142,169.3,169.25,2.9548]
[1729482789911,4.96,169.3,169.25,2.95129297]
[1729482790209,4.96,169.3,169.19,4.96]
[1729482790403,2.9542,169.29,169.24,2.9549]
[1729482790603,2.9542,169.29,169.25,1.47833655]
[1729482790803,4.96,169.3,169.19,4.96]
[1729482791103,4.96,169.3,169.2,7.68724218]
[1729482791303,2.9539,169.31,169.21,7.68724218]
[1729482791499,4.96,169.32,169.28,2.9542]
[1729482791707,4.96,169.33,169.28,2.90576566]
[1729482791905,4.96,169.33,169.23,10.026]
[1729482792103,4.96,169.33,169.24,7.68648666]
[1729482792407,4.96,169.33,169.29,2.9541]
[1729482793202,4.96,169.33,169.29,5.92082998]
[1729482793402,4.96,169.33,169.29,2.9541]
[1729482793909,4.96,169.33,169.29,5.88891059]
[1729482800209,4.96,169.33,169.3,2.954]
[1729482800911,7.9135,169.33,169.3,2.93729505]
[1729482801214,7.9135,169.33,169.29,2.9542]
[1729482801609,7.9135,169.33,169.29,5.86666785]
[1729482811316,4.96,169.33,169.3,2.9539]
[1729482812019,4.96,169.33,169.3,5.89018633]
[1729482812529,4.96,169.33,169.3,2.93628633]
[1729482812721,7.9135,169.33,169.29,2.9542]
[1729482813022,7.9135,169.33,169.29,5.89964929]
[1729482813925,8.80276518,169.42,169.23,5.066]
[1729482814119,4.94,169.42,169.24,12.62603934]
[1729482814324,7.9238,169.41,169.25,7.68603934]
[1729482814622,2.953,169.36,169.31,2.9537]
[1729482814819,2.953,169.36,169.32,1.47808449]
[1729482815016,2.953,169.36,169.28,4.94]
[1729482815526,2.9528,169.38,169.29,7.68480378]
[1729482815719,2.9528,169.38,169.3,7.68480378]
[1729482815919,2.9528,169.38,169.31,5.32024877]
[1729482816119,2.9528,169.38,169.32,1.47784688]
[1729482816321,2.9528,169.38,169.33,1.47784688]
[1729482816624,2.9528,169.38,169.33,2.92300827]
[1729482816826,2.9528,169.38,169.34,2.9533]
[1729482817026,2.9528,169.38,169.34,5.85976071]
[1729482823228,2.9522,169.41,169.36,2.9529]
[1729482824132,12.7517,169.43,169.36,2.9529]
[1729482824328,2.9524,169.4,169.35,2.9531]
[1729482825033,2.9524,169.4,169.35,5.96700242]
[1729482826224,2.9524,169.4,169.35,3.01390242]
[1729482826430,2.9524,169.4,169.36,2.9529]
[1729482826728,2.9524,169.4,169.36,5.95030938]
[1729482833633,7.8117,169.43,169.36,2.99740938]
[1729482833837,4.94,169.42,169.38,2.9525]
[1729482834925,4.94,169.42,169.36,2.96178309]
[1729482834926,7.8117,169.43,169.39,2.9524]
[1729482835125,12.7517,169.43,169.39,2.9524]
[1729482835333,12.7517,169.43,169.36,2.96178309]
[1729482835638,12.7517,169.43,169.32,4.94]
[1729482836233,2.952,169.42,169.35,2.9531]
[1729482836436,2.952,169.42,169.35,2.9851205]
[1729482836629,2.952,169.42,169.32,4.94]
[1729482836939,2.952,169.42,169.33,1.47758841]
[1729482837239,2.952,169.42,169.33,2.92987878]
[1729482837443,2.952,169.42,169.32,4.94]
[1729482837637,2.952,169.42,169.37,2.9527]
[1729482837840,2.952,169.42,169.37,5.87667058]
[1729482846242,2.9521,169.41,169.37,5.87667058]
[1729482847645,2.9519,169.43,169.38,2.9525]
[1729482849548,4.94,169.44,169.41,2.952]
[1729482849846,4.94,169.44,169.32,4.94]
[1729482850040,4.94,169.44,169.33,1.47739661]
[1729482850246,2.9518,169.43,169.38,2.9525]
[1729482850945,2.9518,169.43,169.38,5.90465558]
[1729482863263,4.92,169.45,169.38,2.95215558]
[1729482863560,4.92,169.45,169.36,2.9529]
[1729482863864,2.9523,169.41,169.36,2.9529]
[1729482864056,2.9523,169.41,169.36,5.85158948]
[1729482867267,2.9521,169.42,169.37,2.9527]
[1729482867458,5.0933,169.44,169.37,2.9527]
[1729482868155,5.0933,169.44,169.37,5.86662663]
[1729482868868,2.9522,169.41,169.37,5.86662663]
[1729482872564,5.0933,169.44,169.37,2.91392663]
[1729482872761,2.952,169.42,169.38,2.9526]
[1729482873069,2.952,169.42,169.38,5.9061116]
[1729482875070,2.9519,169.43,169.38,5.9061116]
[1729482884875,2.9519,169.43,169.39,2.9524]
[1729482887677,2.9518,169.43,169.38,5.9061116]
[1729482887879,2.9518,169.43,169.38,2.9526]
[1729482888381,2.9518,169.43,169.38,5.87538894]
[1729482889076,2.9522,169.41,169.38,2.92278894]
[1729482889379,2.9522,169.41,169.36,2.9529]
[1729482889679,2.9524,169.4,169.36,2.9529]
[1729482889875,2.9524,169.4,169.36,5.86045126]
[1729482891181,2.9519,169.43,169.36,2.90755126]
[1729482891383,7.6972,169.44,169.35,2.9531]
[1729482891576,7.6972,169.44,169.36,1.47751045]
[1729482891778,7.6972,169.44,169.36,2.90430194]
[1729482891976,7.6972,169.44,169.35,2.9531]
[1729482892185,2.9524,169.4,169.36,1.47751045]
[1729482892490,2.9524,169.4,169.36,3.01596042]
[1729482892778,2.9524,169.4,169.35,2.9531]
[1729482892979,2.9524,169.4,169.36,1.47745887]
[1729482893281,2.9524,169.4,169.35,2.9531]
[1729482893481,2.9524,169.4,169.36,1.47745725]
[1729482893682,2.9524,169.4,169.36,2.9405121]
[1729482893881,2.9524,169.4,169.35,2.9531]
[1729482894385,2.9524,169.4,169.36,1.47749151]
[1729482894587,2.9524,169.4,169.36,2.953]
[1729482900785,4.92,169.41,169.35,2.92130852]
[1729482900989,4.92,169.41,169.36,2.9548866]
[1729482901186,4.92,169.41,169.35,2.92852152]
[1729482901384,2.9527,169.38,169.32,2.9536]
[1729482901585,4.92,169.37,169.33,2.95532813]
[1729482901890,4.92,169.37,169.33,2.98406092]
[1729482902094,2.9531,169.36,169.31,2.9537]
[1729482902288,2.9531,169.36,169.32,2.95533626]
[1729482902494,2.9531,169.36,169.33,1.47766813]
[1729482902689,2.9531,169.36,169.33,2.90710458]
[1729482902890,2.9531,169.36,169.3,2.4635]
[1729482903085,2.9531,169.36,169.31,2.95542684]
[1729482903389,2.9531,169.36,169.32,1.47771342]
[1729482903591,2.9531,169.36,169.33,1.47771348]
[1729482903787,2.9531,169.36,169.33,2.8932162]
[1729482903988,2.9531,169.36,169.27,4.92]
[1729482904189,4.92,169.37,169.3,5.31977418]
[1729482904391,4.92,169.37,169.31,2.9554301]
[1729482904587,4.92,169.37,169.26,7.4011]
[1729482904794,4.92,169.37,169.27,5.32040548]
[1729482904991,4.92,169.37,169.28,5.32040548]
[1729482905197,4.92,169.37,169.29,2.95578082]
[1729482905391,4.92,169.37,169.3,1.47789041]
[1729482905686,4.92,169.37,169.26,7.4011]
[1729482905891,2.9534,169.34,169.27,5.3206774]
[1729482906094,4.92,169.37,169.28,2.95593203]
[1729482906289,7.6446,169.36,169.29,1.47796618]
[1729482906593,7.6446,169.36,169.26,2.4811]
[1729482906796,7.6446,169.36,169.27,2.95605974]
[1729482906987,7.6446,169.36,169.28,1.47802987]
[1729482907190,2.9536,169.33,169.28,2.9542]
[1729482907893,7.6446,169.36,169.28,2.9542]
[1729482908188,7.6446,169.36,169.27,2.9545]
[1729482908392,7.6446,169.36,169.21,4.92]
[1729482908593,2.9545,169.28,169.23,2.9552]
[1729482908792,4.92,169.29,169.24,2.95659123]
[1729482909093,4.92,169.29,169.23,2.9552]
[1729482909690,4.92,169.29,169.25,2.9549]
[1729482910095,4.92,169.3,169.2,155.24693074]
[1729482910397,4.92,169.3,169.26,2.9546]
[1729482912101,4.92,169.32,169.28,2.9544]
[1729482912994,7.6446,169.36,169.24,2.6753]
[1729482913194,4.92,169.35,169.25,10.5844984]
[1729482913400,4.92,169.35,169.26,2.95594356]
[1729482913595,4.92,169.37,169.27,7.87594356]
[1729482913800,4.92,169.37,169.28,2.95594356]
[1729482914001,4.92,169.37,169.27,4.92]
[1729482914002,4.92,169.37,169.29,2.95594356]
[1729482914203,4.92,169.37,169.29,2.90246622]
[1729482914403,4.92,169.37,169.27,4.92]
[1729482914704,4.92,169.37,169.28,5.31982713]
[1729482914900,2.953,169.36,169.31,2.9537]
[1729482915104,2.953,169.36,169.31,5.90080135]
[1729482915805,4.92,169.37,169.31,2.94710135]
[1729482916105,4.92,169.37,169.27,4.92]
[1729482916304,4.92,169.37,169.28,5.31965769]
[1729482916604,5.6215,169.4,169.34,2.9532]
[1729482916803,4.9,169.39,169.34,3.00527431]
[1729482917008,4.9,169.39,169.28,2.36427899]
[1729482917305,4.9,169.39,169.29,2.95534514]
[1729482917511,10.5215,169.4,169.3,2.95534514]
[1729482917711,10.5215,169.4,169.31,1.47767256]
[1729482917910,10.5215,169.4,169.31,2.99020065]
[1729482918119,10.5215,169.4,169.27,4.92]
[1729482918416,10.5215,169.4,169.28,3.84195782]
[1729482918611,10.5215,169.4,169.29,3.84195782]
[1729482918820,10.5215,169.4,169.3,2.95524284]
[1729482919018,10.5215,169.4,169.31,2.95524284]
[1729482919316,10.5215,169.4,169.32,1.47756728]
[1729482919523,10.5215,169.4,169.35,2.9531]
[1729482920623,2.9522,169.41,169.36,2.9528]
[1729482920819,7.8522,169.41,169.36,2.9528]
[1729482922019,4.9,169.41,169.32,10.75861068]
[1729482922326,4.9,169.41,169.32,2.95061068]
[1729482922513,4.9,169.41,169.28,4.9]
[1729482922719,4.9,169.41,169.29,2.95527604]
[1729482923018,4.9,169.41,169.3,2.95527604]
[1729482923227,4.9,169.41,169.28,4.9]
[1729482923416,4.9,169.41,169.29,2.9553476]
[1729482923621,4.9,169.41,169.3,2.9553476]
[1729482923820,2.9528,169.37,169.31,2.9537]
[1729482924122,2.9528,169.37,169.31,2.96195873]
[1729482924316,2.9528,169.37,169.28,4.9]
[1729482924512,2.9528,169.37,169.29,2.95535084]
[1729482924721,2.9528,169.37,169.3,1.47767542]
[1729482924920,2.9528,169.37,169.29,2.88573077]
[1729482925218,2.9528,169.37,169.3,1.47767542]
[1729482925416,2.9528,169.37,169.3,2.95391397]
[1729482925619,2.9528,169.37,169.28,4.9]
[1729482925816,2.9528,169.37,169.32,2.9535]
[1729482926116,2.9528,169.37,169.32,5.91598375]
[1729482926317,2.9528,169.37,169.32,2.9535]
[1729482926927,2.9528,169.37,169.32,5.85244918]
[1729482928425,2.9526,169.38,169.34,2.9533]
[1729482932114,4.9,169.41,169.32,2.89894918]
[1729482932319,2.9525,169.39,169.29,7.5393]
[1729482932523,4.9,169.41,169.3,5.31936415]
[1729482932726,4.9,169.41,169.31,2.9552023]
[1729482932921,7.8522,169.41,169.36,2.9529]
[1729482933325,4.9,169.41,169.3,2.36416787]
[1729482933525,4.9,169.41,169.31,1.47762613]
[1729482933726,4.9,169.41,169.29,10.50089722]
[1729482933935,4.9,169.41,169.3,2.95523854]
[1729482934129,4.9,169.41,169.31,2.95523854]
[1729482934324,4.9,169.41,169.29,10.50089722]
[1729482934529,4.9,169.41,169.3,2.95524076]
[1729482934729,4.9,169.41,169.31,1.47762038]
[1729482934930,2.9523,169.4,169.35,2.9531]
[1729482939632,2.9523,169.4,169.29,10.50089722]
[1729482939826,2.5953,169.44,169.3,5.31872126]
[1729482940031,2.683,169.45,169.35,2.9531]
[1729482940226,2.683,169.45,169.36,1.47742257]
[1729482940431,2.683,169.45,169.35,4.9]
[1729482940634,2.9516,169.44,169.4,2.9522]
[1729482941434,2.9516,169.44,169.4,5.93366193]
[1729482941634,2.9516,169.44,169.4,2.9522]
[1729482942232,2.9516,169.44,169.4,5.86750567]
[1729482945736,7.3441,169.47,169.41,2.9521]
[1729482945933,7.3441,169.47,169.4,2.91530567]
[1729482946129,2.4441,169.47,169.36,7.7255]
[1729482946334,7.3241,169.47,169.37,2.95413264]
[1729482946535,7.3241,169.47,169.36,7.7255]
[1729482946536,4.88,169.47,169.43,2.9516]
[1729482946736,5.6517,169.48,169.43,2.89610854]
[1729482947035,2.951,169.48,169.39,4.88]
[1729482947237,2.9508,169.49,169.44,2.9515]
[1729482952929,4.88,169.5,169.44,2.9515]
[1729482953135,2.9509,169.48,169.44,2.9515]
[1729482954136,4.88,169.5,169.39,7.7867408]
[1729482954329,7.8306,169.5,169.46,2.9512]
[1729482954534,5.1094,169.52,169.43,4.88]
[1729482954847,4.88,169.54,169.43,4.88]
[1729482955140,4.88,169.54,169.44,5.1178]
[1729482955336,2.9495,169.56,169.51,2.9503]
[1729482955933,4.88,169.57,169.47,4.88]
[1729482956533,4.88,169.61,169.47,4.88]
[1729482956734,7.7647,169.58,169.47,4.88]
[1729482957842,2.9499,169.54,169.49,2.9507]
[1729482958036,2.9499,169.54,169.49,5.90607814]
[1729482958236,2.9499,169.54,169.49,2.9507]
[1729482958740,2.9499,169.54,169.49,5.91818187]
[1729482958939,2.9499,169.54,169.49,2.9507]
[1729482959334,4.88,169.57,169.49,2.89308818]
[1729482959534,2.9502,169.53,169.48,2.9508]
[1729482959730,2.9502,169.53,169.48,5.85156372]
[1729482959930,4.88,169.57,169.48,2.90076372]
[1729482960141,4.88,169.57,169.47,4.88]
[1729482960336,4.88,169.57,169.44,7.6675]
[1729482960539,4.88,169.57,169.45,4.88]
[1729482960846,4.88,169.57,169.46,2.9511]
[1729482961540,2.9504,169.51,169.46,2.9511]
[1729482966047,2.9504,169.51,169.47,2.951]
[1729482968949,7.7647,169.58,169.45,4.88]
[1729482969148,4.88,169.57,169.45,4.88]
[1729482969351,7.7647,169.58,169.45,4.88]
[1729482969656,4.88,169.57,169.45,4.88]
[1729482970951,2.9501,169.53,169.45,4.88]
[1729482971558,2.9501,169.53,169.48,2.9507]
[1729482971754,2.9501,169.53,169.48,5.93500586]
[1729482973157,2.9504,169.51,169.48,2.98430586]
[1729482973357,2.9504,169.51,169.47,2.951]
[1729482973758,2.9507,169.49,169.48,3.01182417]
[1729482973963,2.9507,169.49,169.44,7.8315]
[1729482978274,2.9506,169.5,169.46,2.9512]
[1729482980073,2.9504,169.51,169.47,2.951]
[1729482980273,7.537,169.52,169.48,2.95282801]
[1729482980467,7.537,169.52,169.44,4.88]
[1729482980669,2.9506,169.5,169.46,2.9511]
[1729482981273,10.4872,169.52,169.48,2.9509]
[1729482981571,4.88,169.54,169.48,3.01748848]
[1729482981770,17.74,169.61,169.44,4.88]
[1729482981771,4.88,169.55,169.44,4.88]
[1729482981970,7.874,169.6,169.48,2.9509]
[1729482982164,4.88,169.59,169.48,5.92498625]
[1729482982875,2.9502,169.52,169.48,5.92498625]
[1729482986775,4.88,169.55,169.48,5.92498625]
[1729482986983,4.88,169.56,169.5,2.9505]
[1729482987169,4.88,169.57,169.5,2.9505]
[1729482987570,2.9498,169.55,169.5,2.9505]
[1729482987873,2.9498,169.55,169.5,5.9748413]
[1729482988074,7.874,169.6,169.45,5.1473]
[1729482988276,4.88,169.59,169.48,4.88]
[1729482988577,4.88,169.59,169.48,7.8269909]